fUST/lending_fUST_20240126
["ID","MTS","AMOUNT","RATE_DAILY","PERIOD"]
[312778623,1706208648095,-500.0,0.00044109,31]
[312778624,1706208648107,-500.0,0.00044109,31]
[312778625,1706208648116,-500.0,0.00044109,31]
[312778626,1706208648125,-597.95,0.00044109,31]
[312778627,1706208648134,-500.0,0.00044109,31]
[312778628,1706208648144,-264.17363447,0.00044109,31]
[312778629,1706208648153,-500.0,0.00044109,31]
[312778630,1706208648162,-500.0,0.00044109,31]
[312778631,1706208648171,-500.0,0.00044109,31]
[312778632,1706208648242,-151.0,0.00044109,7]
[312778633,1706208648252,-502.71547117,0.00044109,10]
[312778634,1706208648261,-500.0,0.00044109,2]
[312778635,1706208648271,-500.0,0.00044109,31]
[312778636,1706208648280,-500.0,0.00044109,31]
[312778637,1706208648289,-508.7351779,0.00044109,31]
[312778638,1706208648299,-1000.0,0.00044109,2]
[312778639,1706208648308,-393.719375,0.00044109,7]
[312778640,1706208648318,-393.719375,0.00044109,7]
[312778641,1706208648327,-150.0,0.00044109,21]
[312778642,1706208648336,-500.0,0.00044109,7]
[312778643,1706208648346,-500.0,0.00044109,31]
[312778644,1706208648355,-2902.24,0.00044109,2]
[312778645,1706208648364,-500.0,0.00044109,31]
[312778646,1706208648374,-503.3,0.00044109,31]
[312778647,1706208648383,-580.25772815,0.00044109,31]
[312778648,1706208648393,-500.0,0.00044109,31]
[312778649,1706208648402,-676.19,0.00044109,31]
[312778650,1706208648411,-500.0,0.00044109,31]
[312778651,1706208648421,-304.77647466,0.00044109,31]
[312778652,1706208648430,-500.0,0.00044109,31]
[312778653,1706208648440,-1328.69745,0.00044109,7]
[312778654,1706208648450,-1328.69745,0.00044109,7]
[312778655,1706208648459,-500.0,0.00044109,31]
[312778656,1706208648468,-500.0,0.00044109,31]
[312778657,1706208648478,-500.0,0.00044109,31]
[312778658,1706208648487,-291.30031901,0.00044109,31]
[312778659,1706208648496,-500.0,0.00044109,31]
[312778660,1706208648505,-500.0,0.00044109,31]
[312778661,1706208648514,-500.0,0.00044109,31]
[312778662,1706208648523,-500.0,0.00044109,31]
[312778663,1706208648533,-500.23781532,0.00044109,31]
[312778664,1706208648542,-522.23,0.00044109,31]
[312778665,1706208648551,-500.0,0.00044109,31]
[312778666,1706208648560,-1611.85,0.00044109,31]
[312778667,1706208648570,-500.0,0.00044109,31]
[312778668,1706208648579,-576.56,0.00044109,31]
[312778669,1706208648589,-1139.58,0.00044109,31]
[312778670,1706208648598,-500.0,0.00044109,31]
[312778671,1706208648607,-500.0,0.00044109,31]
[312778672,1706208648616,-708.5,0.00044109,31]
[312778673,1706208648627,-500.0,0.00044109,31]
[312778674,1706208648636,-500.0,0.00044109,31]
[312778675,1706208648645,-500.0,0.00044109,31]
[312778676,1706208648654,-500.0,0.00044109,31]
[312778677,1706208648663,-500.0,0.00044109,31]
[312778678,1706208648672,-500.0,0.00044109,7]
[312778679,1706208648681,-1163.28,0.00044109,31]
[312778680,1706208648690,-500.0,0.00044109,31]
[312778681,1706208648699,-504.3574933,0.00044109,31]
[312778682,1706208648709,-1000.0,0.00044109,2]
[312778683,1706208648718,-500.0,0.00044109,31]
[312778684,1706208648727,-174.720816,0.00044109,7]
[312778685,1706208648736,-500.0,0.00044109,31]
[312778686,1706208648745,-500.0,0.00044109,31]
[312778687,1706208648755,-500.0,0.00044109,31]
[312778688,1706208648764,-500.0,0.00044109,31]
[312778689,1706208648773,-500.0,0.00044109,31]
[312778690,1706208648782,-500.0,0.00044109,31]
[312778691,1706208648791,-500.0,0.00044109,31]
[312778692,1706208648800,-500.0,0.00044109,31]
[312778693,1706208648810,-500.0,0.00044109,31]
[312778694,1706208648818,-500.0,0.00044109,31]
[312778695,1706208648828,-500.0,0.00044109,31]
[312778696,1706208648836,-411.448744,0.00044109,7]
[312778697,1706208648846,-500.0,0.00044109,31]
[312778698,1706208648855,-411.448744,0.00044109,7]
[312778699,1706208648864,-411.448744,0.00044109,7]
[312778700,1706208648875,-500.0,0.00044109,31]
[312778701,1706208648885,-647.93,0.00044109,31]
[312778702,1706208648895,-411.448744,0.00044109,7]
[312778703,1706208648905,-732.6,0.00044109,31]
[312778704,1706208648914,-500.0,0.00044109,31]
[312778705,1706208648923,-1041.67,0.00044109,31]
[312778706,1706208648934,-500.0,0.00044109,31]
[312778707,1706208648944,-831.24253,0.00044109,7]
[312778708,1706208648955,-831.24253,0.00044109,7]
[312778709,1706208648965,-500.0,0.00044109,31]
[312778710,1706208648976,-553.10997835,0.00044109,31]
[312778711,1706208648986,-831.24253,0.00044109,7]
[312778712,1706208648995,-831.24253,0.00044109,7]
[312778713,1706208649005,-543.38352,0.00044109,31]
[312778714,1706208649014,-500.0,0.00044109,31]
[312778715,1706208649024,-500.0,0.00044109,31]
[312778716,1706208649034,-500.0,0.00044109,31]
[312778717,1706208649045,-500.0,0.00044109,31]
[312778718,1706208649054,-500.0,0.00044109,31]
[312778719,1706208649063,-500.0,0.00044109,31]
[312778720,1706208649072,-500.0,0.00044109,31]
[312778721,1706208649082,-1931.96,0.00044109,2]
[312778722,1706208649093,-500.0,0.00044109,31]
[312778723,1706208649103,-500.0,0.00044109,31]
[312778724,1706208649112,-542.32,0.00044109,31]
[312778725,1706208649122,-500.0,0.00044109,31]
[312778726,1706208649132,-500.0,0.00044109,31]
[312778727,1706208649141,-4971.59,0.00044109,31]
[312778728,1706208649151,-500.0,0.00044109,31]
[312778729,1706208649161,-500.0,0.00044109,31]
[312778730,1706208649170,-500.0,0.00044109,31]
[312778731,1706208649179,-500.93738174,0.00044109,31]
[312778732,1706208649189,-680.71,0.00044109,31]
[312778733,1706208649199,-500.0,0.00044109,31]
[312778734,1706208649209,-500.0,0.00044109,31]
[312778735,1706208649218,-500.0,0.00044109,31]
[312778736,1706208649228,-514.52239156,0.00044109,31]
[312778737,1706208649237,-500.0,0.00044109,31]
[312778738,1706208649247,-500.0,0.00044109,31]
[312778739,1706208649257,-500.0,0.00044109,31]
[312778740,1706208649266,-1320.99,0.00044109,31]
[312778741,1706208649277,-500.0,0.00044109,31]
[312778742,1706208649287,-500.0,0.00044109,31]
[312778743,1706208649297,-500.0,0.00044109,31]
[312778744,1706208649306,-551.17,0.00044109,31]
[312778745,1706208649315,-500.0,0.00044109,31]
[312778746,1706208649325,-576.86,0.00044109,31]
[312778747,1706208649335,-500.0,0.00044109,31]
[312778748,1706208649349,-605.42,0.00044109,31]
[312778749,1706208649360,-500.0,0.00044109,31]
[312778750,1706208649369,-773.17,0.00044109,31]
[312778751,1706208649378,-302.78971531,0.00044109,31]
[312778752,1706208649388,-519.7,0.00044109,31]
[312778753,1706208649397,-500.0,0.00044109,31]
[312778754,1706208649407,-500.0,0.00044109,31]
[312778755,1706208649416,-1497.83,0.00044109,31]
[312778756,1706208649425,-500.0,0.00044109,31]
[312778757,1706208649434,-500.0,0.00044109,31]
[312778758,1706208649443,-570.29,0.00044109,31]
[312778759,1706208649452,-500.0,0.00044109,31]
[312778760,1706208649461,-500.0,0.00044109,31]
[312778761,1706208649470,-500.0,0.00044109,31]
[312778762,1706208649479,-554.57,0.00044109,31]
[312778763,1706208649487,-500.0,0.00044109,31]
[312778764,1706208649496,-500.0,0.00044109,31]
[312778765,1706208649505,-382.18447371,0.00044109,31]
[312778766,1706208649571,-500.0,0.00044109,31]
[312778767,1706208649580,-594.6,0.00044109,31]
[312778768,1706208649591,-500.0,0.00044109,31]
[312778769,1706208649599,-1562.43,0.00044109,31]
[312778770,1706208649609,-500.0,0.00044109,31]
[312778771,1706208649621,-500.0,0.00044109,31]
[312778772,1706208649632,-500.0,0.00044109,31]
[312778773,1706208649642,-500.0,0.00044109,31]
[312778774,1706208649653,-500.0,0.00044109,31]
[312778775,1706208649664,-500.0,0.00044109,31]
[312778776,1706208649674,-174.19306023,0.00044109,31]
[312778777,1706208649686,-737.64,0.00044109,31]
[312778778,1706208649697,-500.0,0.00044109,31]
[312778779,1706208649708,-500.0,0.00044109,31]
[312778780,1706208649717,-500.0,0.00044109,31]
[312778781,1706208649726,-1637.55,0.00044109,31]
[312778782,1706208649736,-623.76,0.00044109,31]
[312778783,1706208649746,-500.0,0.00044109,31]
[312778784,1706208649755,-500.0,0.00044109,31]
[312778785,1706208649764,-3650.15,0.00044109,31]
[312778786,1706208649775,-500.0,0.00044109,31]
[312778787,1706208649787,-504.14,0.00044109,31]
[312778788,1706208649797,-564.44,0.00044109,31]
[312778789,1706208649807,-500.0,0.00044109,31]
[312778790,1706208649817,-500.0,0.00044109,31]
[312778791,1706208649828,-500.0,0.00044109,31]
[312778792,1706208649839,-500.0,0.00044109,31]
[312778793,1706208649849,-500.0,0.00044109,31]
[312778794,1706208649860,-500.0,0.00044109,31]
[312778795,1706208649870,-500.0,0.00044109,31]
[312778796,1706208649879,-206.97387227,0.00044109,31]
[312778797,1706208649890,-258.50742114,0.00044109,31]
[312778798,1706208649901,-1887.22,0.00044109,31]
[312778799,1706208649910,-500.0,0.00044109,31]
[312778800,1706208649921,-525.75,0.00044109,31]
[312778801,1706208649931,-500.0,0.00044109,31]
[312778802,1706208649940,-500.0,0.00044109,31]
[312778803,1706208649950,-500.0,0.00044109,31]
[312778804,1706208649960,-500.0,0.00044109,31]
[312778805,1706208649969,-595.27235496,0.00044109,31]
[312778806,1706208649978,-1661.66,0.00044109,31]
[312778807,1706208649988,-500.0,0.00044109,31]
[312778808,1706208649997,-500.0,0.00044109,31]
[312778809,1706208650006,-500.0,0.00044109,31]
[312778810,1706208650014,-598.93,0.00044109,31]
[312778811,1706208650024,-500.0,0.00044109,31]
[312778812,1706208650033,-500.0,0.00044109,31]
[312778813,1706208650043,-842.04,0.00044109,31]
[312778814,1706208650052,-500.0,0.00044109,31]
[312778815,1706208650062,-500.0,0.00044109,31]
[312778816,1706208650071,-1000.0,0.00044109,2]
[312778817,1706208650080,-500.0,0.00044109,31]
[312778818,1706208650089,-500.0,0.00044109,31]
[312778819,1706208650099,-500.0,0.00044109,31]
[312778820,1706208650108,-500.0,0.00044109,31]
[312778821,1706208650116,-500.0,0.00044109,31]
[312778822,1706208650126,-500.0,0.00044109,31]
[312778823,1706208650135,-500.0,0.00044109,31]
[312778824,1706208650144,-505.33,0.00044109,31]
[312778825,1706208650153,-628.06,0.00044109,31]
[312778826,1706208650163,-151.0,0.00044109,7]
[312778827,1706208650172,-151.0,0.00044109,7]
[312778828,1706208650181,-500.0,0.00044109,31]
[312778829,1706208650190,-500.0,0.00044109,31]
[312778830,1706208650200,-500.0,0.00044109,31]
[312778831,1706208650209,-500.0,0.00044109,31]
[312778832,1706208650218,-1394.39,0.00044109,31]
[312778833,1706208650227,-151.0,0.00044109,7]
[312778834,1706208650237,-151.0,0.00044109,7]
[312778835,1706208650247,-500.0,0.00044109,31]
[312778836,1706208650256,-500.0,0.00044109,31]
[312778837,1706208650266,-500.0,0.00044109,31]
[312778838,1706208650275,-1205.12,0.00044109,31]
[312778839,1706208650284,-6609.68,0.00044109,14]
[312778840,1706208650294,-9030.278933,0.00044109,7]
[312778841,1706208650303,-9030.278933,0.00044109,7]
[312778842,1706208650313,-500.0,0.00044109,31]
[312778843,1706208650323,-9030.278933,0.00044109,7]
[312778844,1706208650332,-9030.278933,0.00044109,7]
[312778845,1706208650343,-500.0,0.00044109,31]
[312778846,1706208650352,-4850.66,0.00044109,31]
[312778847,1706208650362,-541.89,0.00044109,31]
[312778848,1706208650371,-500.0,0.00044109,31]
[312778849,1706208650380,-1711.964863,0.00044172,30]
[312778850,1706208650389,-1219.413068,0.00044172,30]
[312778851,1706208650398,-2000.0,0.00044264,2]
[312778852,1706208650408,-152.82367298,0.00044347,11]
[312778853,1706208650417,-500.0,0.00044383,31]
[312778854,1706208650426,-500.0,0.00044383,31]
[312778855,1706208650436,-502.27687519,0.00044383,7]
[312778856,1706208650445,-500.0,0.00044383,31]
[312778857,1706208650454,-362.38993479,0.00044383,31]
[312778858,1706208650463,-1351.13,0.00044383,2]
[312778859,1706208650472,-500.0,0.00044383,7]
[312778860,1706208650481,-500.0,0.00044383,31]
[312778861,1706208650490,-500.0,0.00044383,31]
[312778862,1706208650499,-271.066788,0.00044383,7]
[312778863,1706208650508,-541.46,0.00044383,31]
[312778864,1706208650517,-500.0,0.00044383,31]
[312778865,1706208650526,-150.0,0.00044383,31]
[312778866,1706208650535,-621.56,0.00044383,31]
[312778867,1706208650544,-500.0,0.00044383,31]
[312778868,1706208650555,-553.79981414,0.00044383,31]
[312778869,1706208650564,-450.32140205,0.00044383,31]
[312778870,1706208650573,-500.0,0.00044383,31]
[312778871,1706208650582,-500.0,0.00044383,31]
[312778872,1706208650593,-279.50169444,0.00044383,31]
[312778873,1706208650602,-500.0,0.00044383,31]
[312778874,1706208650611,-511.47,0.00044383,31]
[312778875,1706208650623,-500.0,0.00044383,31]
[312778876,1706208650632,-500.0,0.00044383,31]
[312778877,1706208650641,-151.19772957,0.00044383,31]
[312778878,1706208650650,-597.95,0.00044383,31]
[312778879,1706208650659,-500.0,0.00044383,31]
[312778880,1706208650668,-585.41669082,0.00044383,31]
[312778881,1706208650678,-500.0,0.00044383,31]
[312778882,1706208650687,-500.0,0.00044383,31]
[312778883,1706208650697,-151.0,0.00044383,7]
[312778884,1706208650706,-500.0,0.00044383,2]
[312778885,1706208650715,-500.0,0.00044383,31]
[312778886,1706208650724,-500.0,0.00044383,31]
[312778887,1706208650733,-1000.0,0.00044383,2]
[312778888,1706208650743,-393.719375,0.00044383,7]
[312778889,1706208650752,-393.719375,0.00044383,7]
[312778890,1706208650819,-150.0,0.00044383,21]
[312778891,1706208650828,-500.0,0.00044383,7]
[312778892,1706208650838,-500.0,0.00044383,31]
[312778893,1706208650848,-2902.24,0.00044383,2]
[312778894,1706208650857,-500.0,0.00044383,31]
[312778895,1706208650866,-503.3,0.00044383,31]
[312778896,1706208650875,-500.0,0.00044383,31]
[312778897,1706208650884,-676.19,0.00044383,31]
[312778898,1706208650893,-500.0,0.00044383,31]
[312778899,1706208650902,-500.0,0.00044383,31]
[312778900,1706208650912,-1328.69745,0.00044383,7]
[312778901,1706208650921,-1328.69745,0.00044383,7]
[312778902,1706208650930,-500.0,0.00044383,31]
[312778903,1706208650939,-500.0,0.00044383,31]
[312778904,1706208650948,-500.0,0.00044383,31]
[312778905,1706208650957,-500.0,0.00044383,31]
[312778906,1706208650967,-500.0,0.00044383,31]
[312778907,1706208650976,-500.0,0.00044383,31]
[312778908,1706208650986,-500.0,0.00044383,31]
[312778909,1706208650995,-522.23,0.00044383,31]
[312778910,1706208651004,-500.0,0.00044383,31]
[312778911,1706208651013,-1611.85,0.00044383,31]
[312778912,1706208651023,-500.0,0.00044383,31]
[312778913,1706208651032,-576.56,0.00044383,31]
[312778914,1706208651042,-1139.58,0.00044383,31]
[312778915,1706208651051,-500.0,0.00044383,31]
[312778916,1706208651061,-500.0,0.00044383,31]
[312778917,1706208651070,-708.5,0.00044383,31]
[312778918,1706208651079,-500.0,0.00044383,31]
[312778919,1706208651089,-500.0,0.00044383,31]
[312778920,1706208651098,-500.0,0.00044383,31]
[312778921,1706208651108,-500.0,0.00044383,31]
[312778922,1706208651117,-500.0,0.00044383,31]
[312778923,1706208651126,-500.0,0.00044383,7]
[312778924,1706208651135,-1163.28,0.00044383,31]
[312778925,1706208651145,-500.0,0.00044383,31]
[312778926,1706208651154,-1000.0,0.00044383,2]
[312778927,1706208651164,-500.0,0.00044383,31]
[312778928,1706208651173,-500.0,0.00044383,31]
[312778929,1706208651183,-267.75773019,0.00044383,31]
[312778930,1706208651193,-500.0,0.00044383,31]
[312778931,1706208651202,-500.0,0.00044383,31]
[312778932,1706208651212,-500.0,0.00044383,31]
[312778933,1706208651222,-500.0,0.00044383,31]
[312778934,1706208651231,-500.0,0.00044383,31]
[312778935,1706208651240,-500.0,0.00044383,31]
[312778936,1706208651250,-500.0,0.00044383,31]
[312778937,1706208651259,-500.0,0.00044383,31]
[312778938,1706208651268,-500.0,0.00044383,31]
[312778939,1706208651278,-411.448744,0.00044383,7]
[312778940,1706208651287,-500.0,0.00044383,31]
[312778941,1706208651297,-500.0,0.00044383,31]
[312778942,1706208651307,-411.448744,0.00044383,7]
[312778943,1706208651316,-647.93,0.00044383,31]
[312778944,1706208651325,-732.6,0.00044383,31]
[312778945,1706208651334,-587.61485626,0.00044383,31]
[312778946,1706208651344,-1041.67,0.00044383,31]
[312778947,1706208651353,-500.0,0.00044383,31]
[312778948,1706208651362,-831.24253,0.00044383,7]
[312778949,1706208651371,-500.0,0.00044383,31]
[312778950,1706208651381,-831.24253,0.00044383,7]
[312778951,1706208651390,-500.0,0.00044383,31]
[312778952,1706208651399,-500.0,0.00044383,31]
[312778953,1706208651408,-500.0,0.00044383,31]
[312778954,1706208651418,-500.0,0.00044383,31]
[312778955,1706208651427,-500.0,0.00044383,31]
[312778956,1706208651436,-500.0,0.00044383,31]
[312778957,1706208651445,-500.0,0.00044383,31]
[312778958,1706208651455,-1931.96,0.00044383,2]
[312778959,1706208651463,-500.0,0.00044383,31]
[312778960,1706208651472,-500.0,0.00044383,31]
[312778961,1706208651482,-542.32,0.00044383,31]
[312778962,1706208651491,-500.0,0.00044383,31]
[312778963,1706208651501,-500.0,0.00044383,31]
[312778964,1706208651509,-4971.59,0.00044383,31]
[312778965,1706208651519,-500.0,0.00044383,31]
[312778966,1706208651528,-500.0,0.00044383,31]
[312778967,1706208651538,-500.0,0.00044383,31]
[312778968,1706208651547,-680.71,0.00044383,31]
[312778969,1706208651556,-500.0,0.00044383,31]
[312778970,1706208651566,-500.0,0.00044383,31]
[312778971,1706208651575,-500.0,0.00044383,31]
[312778972,1706208651585,-500.0,0.00044383,31]
[312778973,1706208651596,-313.89689538,0.00044383,31]
[312778974,1706208651606,-528.98859335,0.00044383,31]
[312778975,1706208651615,-1320.99,0.00044383,31]
[312778976,1706208651624,-470.45918234,0.00044383,31]
[312778977,1706208651633,-500.0,0.00044383,31]
[312778978,1706208651642,-500.0,0.00044383,31]
[312778979,1706208651652,-551.17,0.00044383,31]
[312778980,1706208651661,-500.0,0.00044383,31]
[312778981,1706208651671,-576.86,0.00044383,31]
[312778982,1706208651680,-500.0,0.00044383,31]
[312778983,1706208651689,-605.42,0.00044383,31]
[312778984,1706208651698,-500.0,0.00044383,31]
[312778985,1706208651716,-773.17,0.00044383,31]
[312778986,1706208651756,-519.7,0.00044383,31]
[312778987,1706208651765,-500.0,0.00044383,31]
[312778988,1706208651774,-500.0,0.00044383,31]
[312778989,1706208651783,-1497.83,0.00044383,31]
[312778990,1706208651793,-500.0,0.00044383,31]
[312778991,1706208651802,-500.0,0.00044383,31]
[312778992,1706208651811,-570.29,0.00044383,31]
[312778993,1706208651820,-500.0,0.00044383,31]
[312778994,1706208651829,-500.0,0.00044383,31]
[312778995,1706208651838,-500.0,0.00044383,31]
[312778996,1706208651848,-554.57,0.00044383,31]
[312778997,1706208651857,-500.0,0.00044383,31]
[312778998,1706208651866,-500.0,0.00044383,31]
[312778999,1706208651875,-500.0,0.00044383,31]
[312779000,1706208651885,-594.6,0.00044383,31]
[312779001,1706208651894,-500.0,0.00044383,31]
[312779002,1706208651904,-1562.43,0.00044383,31]
[312779003,1706208651967,-500.0,0.00044383,31]
[312779004,1706208651976,-500.0,0.00044383,31]
[312779005,1706208651985,-500.0,0.00044383,31]
[312779006,1706208651994,-500.0,0.00044383,31]
[312779007,1706208652003,-500.0,0.00044383,31]
[312779008,1706208652013,-500.0,0.00044383,31]
[312779009,1706208652021,-737.64,0.00044383,31]
[312779010,1706208652031,-500.0,0.00044383,31]
[312779011,1706208652040,-500.0,0.00044383,31]
[312779012,1706208652050,-509.01403738,0.00044383,31]
[312779013,1706208652059,-623.76,0.00044383,31]
[312779014,1706208652069,-1637.55,0.00044383,31]
[312779015,1706208652078,-500.0,0.00044383,31]
[312779016,1706208652088,-500.0,0.00044383,31]
[312779017,1706208652099,-3650.15,0.00044383,31]
[312779018,1706208652108,-500.0,0.00044383,31]
[312779019,1706208652117,-504.14,0.00044383,31]
[312779020,1706208652126,-564.44,0.00044383,31]
[312779021,1706208652135,-500.0,0.00044383,31]
[312779022,1706208652145,-500.0,0.00044383,31]
[312779023,1706208652155,-500.0,0.00044383,31]
[312779024,1706208652164,-500.0,0.00044383,31]
[312779025,1706208652173,-500.0,0.00044383,31]
[312779026,1706208652183,-500.0,0.00044383,31]
[312779027,1706208652193,-500.0,0.00044383,31]
[312779028,1706208652204,-1887.22,0.00044383,31]
[312779029,1706208652214,-500.0,0.00044383,31]
[312779030,1706208652224,-525.75,0.00044383,31]
[312779031,1706208652233,-500.0,0.00044383,31]
[312779032,1706208652243,-500.0,0.00044383,31]
[312779033,1706208652252,-500.0,0.00044383,31]
[312779034,1706208652261,-500.0,0.00044383,31]
[312779035,1706208652271,-1661.66,0.00044383,31]
[312779036,1706208652281,-500.0,0.00044383,31]
[312779037,1706208652291,-500.0,0.00044383,31]
[312779038,1706208652301,-502.05140863,0.00044383,31]
[312779039,1706208652310,-598.93,0.00044383,31]
[312779040,1706208652320,-500.0,0.00044383,31]
[312779041,1706208652329,-500.0,0.00044383,31]
[312779042,1706208652338,-842.04,0.00044383,31]
[312779043,1706208652349,-500.0,0.00044383,31]
[312779044,1706208652359,-500.0,0.00044383,31]
[312779045,1706208652369,-1000.0,0.00044383,2]
[312779046,1706208652379,-500.0,0.00044383,31]
[312779047,1706208652389,-500.0,0.00044383,31]
[312779048,1706208652400,-500.0,0.00044383,31]
[312779049,1706208652410,-500.0,0.00044383,31]
[312779050,1706208652421,-500.0,0.00044383,31]
[312779051,1706208652431,-472.01937037,0.00044383,31]
[312779052,1706208652440,-500.0,0.00044383,31]
[312779053,1706208652449,-505.33,0.00044383,31]
[312779054,1706208652458,-628.06,0.00044383,31]
[312779055,1706208652468,-151.0,0.00044383,7]
[312779056,1706208652479,-500.0,0.00044383,31]
[312779057,1706208652489,-500.0,0.00044383,31]
[312779058,1706208652499,-500.0,0.00044383,31]
[312779059,1706208652508,-222.32963418,0.00044383,31]
[312779060,1706208652519,-1394.39,0.00044383,31]
[312779061,1706208652531,-151.0,0.00044383,7]
[312779062,1706208652541,-500.0,0.00044383,31]
[312779063,1706208652549,-393.4726095,0.00044383,31]
[312779064,1706208652558,-500.0,0.00044383,31]
[312779065,1706208652567,-1205.12,0.00044383,31]
[312779066,1706208652576,-6609.68,0.00044383,14]
[312779067,1706208652585,-9030.278933,0.00044383,7]
[312779068,1706208652595,-500.0,0.00044383,31]
[312779069,1706208652608,-9030.278933,0.00044383,7]
[312779070,1706208652617,-500.0,0.00044383,31]
[312779071,1706208652627,-4850.66,0.00044383,31]
[312779072,1706208652636,-541.89,0.00044383,31]
[312779073,1706208652646,-500.0,0.00044383,31]
[312779074,1706208652655,-603.85572555,0.00044657,31]
[312779075,1706208652665,-500.0,0.00044657,31]
[312779076,1706208652674,-500.0,0.00044657,31]
[312779077,1706208652683,-1351.13,0.00044657,2]
[312779078,1706208652692,-500.0,0.00044657,7]
[312779079,1706208652701,-500.0,0.00044657,31]
[312779080,1706208652710,-500.0,0.00044657,31]
[312779081,1706208652719,-541.46,0.00044657,31]
[312779082,1706208652729,-419.5165472,0.00044657,31]
[312779083,1706208652738,-150.0,0.00044657,31]
[312779084,1706208652747,-621.56,0.00044657,31]
[312779085,1706208652756,-500.0,0.00044657,31]
[312779086,1706208652765,-500.0,0.00044657,31]
[312779087,1706208652774,-500.0,0.00044657,31]
[312779088,1706208652783,-301.17982304,0.00044657,31]
[312779089,1706208652792,-511.47,0.00044657,31]
[312779090,1706208652801,-500.0,0.00044657,31]
[312779091,1706208652811,-500.0,0.00044657,31]
[312779092,1706208652820,-597.95,0.00044657,31]
[312779093,1706208652829,-500.0,0.00044657,31]
[312779094,1706208652838,-500.0,0.00044657,31]
[312779095,1706208652848,-500.0,0.00044657,31]
[312779096,1706208652857,-151.0,0.00044657,7]
[312779097,1706208652865,-500.0,0.00044657,2]
[312779098,1706208652874,-500.0,0.00044657,31]
[312779099,1706208652883,-504.51352917,0.00044657,31]
[312779100,1706208652892,-1000.0,0.00044657,2]
[312779101,1706208652902,-393.719375,0.00044657,7]
[312779102,1706208652911,-393.719375,0.00044657,7]
[312779103,1706208652920,-150.43990647,0.00044657,21]
[312779104,1706208652929,-500.0,0.00044657,7]
[312779105,1706208652938,-500.0,0.00044657,31]
[312779106,1706208652947,-2902.24,0.00044657,2]
[312779107,1706208652957,-500.0,0.00044657,31]
[312779108,1706208653018,-503.3,0.00044657,31]
[312779109,1706208653027,-500.0,0.00044657,31]
[312779110,1706208653036,-676.19,0.00044657,31]
[312779111,1706208653045,-500.0,0.00044657,31]
[312779112,1706208653054,-500.0,0.00044657,31]
[312779113,1706208653063,-1328.69745,0.00044657,7]
[312779114,1706208653072,-1328.69745,0.00044657,7]
[312779115,1706208653081,-500.0,0.00044657,31]
[312779116,1706208653089,-500.0,0.00044657,31]
[312779117,1706208653098,-500.0,0.00044657,31]
[312779118,1706208653107,-619.32240226,0.00044657,31]
[312779119,1706208653116,-508.79860651,0.00044657,31]
[312779120,1706208653126,-500.0,0.00044657,31]
[312779121,1706208653135,-500.0,0.00044657,31]
[312779122,1706208653145,-522.23,0.00044657,31]